Workbook

Sheet QuickBooks Desktop Export Tips

Sheet Sheet1
H2: Jan - Dec 26 | J2: Notes
B3: Ordinary Income/Expense | J3: PY - Prior Year, CY - Curent Year
D4: Income
E5: Direct Public Support
F6: Grants | H6: 2850 | J6: $350 from PY, $2500 TVA for CY
F7: Individ, Business Contributions
G8: Boat Fund | H8: 915 | J8: PY
G9: Friends | H9: 360 | J9: PY
G10: Undesignated Donations | H10: 2000 | J10: PY
F11: Total Individ, Business Contributions | H11: =ROUND(SUM(H7:H10),5) -> 3275
E12: Total Direct Public Support | H12: =ROUND(SUM(H5:H6)+H11,5) -> 6125
E13: Fundraising
F14: 4th of July Sales | H14: 1500 | J14: Projected from PY
F15: Flower Bouquet Sales | H15: 0 | J15: No plans to do this
F16: Flower Bulb Sales | H16: 2481 | J16: PY
F17: Raffle | H17: 1000 | J17: PY
F18: Raffle #2 | H18: 500 | J18: Projected with more advance notice than PY
E19: Total Fundraising | H19: =ROUND(SUM(H13:H18),5) -> 5481
E20: Other Types of Income
F21: Bottle Drop | H21: 1000 | J21: Projected from PY
F22: Inventory Sales | H22: 120 | J22: Remaining jerseys
E23: Total Other Types of Income | H23: =ROUND(SUM(H20:H22),5) -> 1120
E24: Program Income
F25: Membership Dues | H25: =(33*225)+(2*40) -> 7505 | J25: 33 dues paying members and 2 exclusive steers
E26: Total Program Income | H26: =ROUND(SUM(H24:H25),5) -> 7505
D27: Total Income | H27: =ROUND(H4+H12+H19+H23+H26,5) -> 20231
D28: Cost of Goods Sold
E29: Cost of Goods Sold
F30: Fundraising Purchases | H30: 1988.2 | J30: 4th of July and Flower Bulbs
E31: Total Cost of Goods Sold | H31: =ROUND(SUM(H29:H30),5) -> 1988.2
D32: Total COGS | H32: =ROUND(H28+H31,5) -> 1988.2
C33: Gross Profit | H33: =ROUND(H27-H32,5) -> 18242.8
D34: Expense
E35: Business Expenses
F36: Business Registration Fees | H36: 70 | J36: Annual fees
E37: Total Business Expenses | H37: =ROUND(SUM(H35:H36),5) -> 70
E38: Facilities and Equipment
F39: Equipment Maintenance | H39: 1038 | J39: OR registration, R & M
F40: Rent, Parking, Utilities | H40: 300 | J40: Port lease
E41: Total Facilities and Equipment | H41: =ROUND(SUM(H38:H40),5) -> 1338
E42: Fundraising Costs
F43: Fundraising Costs - Other | H43: 50 | J43: Farmers Market fees
E44: Total Fundraising Costs | H44: =ROUND(SUM(H42:H43),5) -> 50
E45: Operations
F46: Books, Subscriptions, Reference | H46: 149.99 | J46: TeamSnap
F47: Postage, Mailing Service | H47: 30
F48: Printing and Copying | H48: 2650 | J48: $2500 from CY grant
F49: Website | H49: 350 | J49: $350 from PY grant
E50: Total Operations | H50: =ROUND(SUM(H45:H49),5) -> 3179.99
E51: Other Types of Expenses
F52: Insurance - Liability, D and O | H52: 2312 | J52: D&O, Liability and Hull
F53: Memberships and Dues | H53: 300 | J53: PDBA
F54: Team Meetings | H54: 39.96
E55: Total Other Types of Expenses | H55: =ROUND(SUM(H51:H54),5) -> 2651.96
D56: Total Expense | H56: =ROUND(H34+H37+H41+H44+H50+H55,5) -> 7289.95
B57: Net Ordinary Income | H57: =ROUND(H3+H33-H56,5) -> 10952.85
C58: Other Expense
D59: Acquisitions & Payments | H59: 10000 | J59: $2500 pmt to NCRD, $6,500 for new boat incl delivery, $1,000 laptop and programs for admin
C60: Total Other Expense | H60: =ROUND(SUM(H58:H59),5) -> 10000
B61: Net Other Income | H61: -10000
A62: Net Income | H62: =ROUND(H57+H61,5) -> 952.85
D64: Prior Year ending cash balance | H64: 6440
D65: Carry over to 2027 | H65: =SUM(H62:H64) -> 7392.85
